[Event "Early-Titled-Tuesday-Blitz-June-18-2024"]
[Site "Chess.com"]
[Date "2024.06.18"]
[Round "4"]
[White "AldokhinIvan"]
[Black "Cheer_Down"]
[Result "1-0"]
[WhiteElo "2639"]
[BlackElo "2415"]
[TimeControl "180+1"]
[EndTime "8:42:22 PDT"]
[Termination "AldokhinIvan won on time"]

1. e4 {[%clk 0:03:00.9]} 1... e6 {[%clk 0:02:50.7]} 2. d4 {[%clk 0:02:55.9]}
2... d5 {[%clk 0:02:50.9]} 3. Nc3 {[%clk 0:02:56.2]} 3... Nf6 {[%clk 0:02:50.1]}
4. e5 {[%clk 0:02:55.6]} 4... Nfd7 {[%clk 0:02:50.3]} 5. f4 {[%clk 0:02:56.2]}
5... c5 {[%clk 0:02:49.3]} 6. Nf3 {[%clk 0:02:57.1]} 6... Nc6 {[%clk 0:02:47.6]}
7. Be3 {[%clk 0:02:57.2]} 7... a6 {[%clk 0:02:45.9]} 8. Qd2 {[%clk 0:02:57.2]}
8... b5 {[%clk 0:02:45.5]} 9. dxc5 {[%clk 0:02:54.9]} 9... Bxc5 {[%clk
0:02:43.8]} 10. Bd3 {[%clk 0:02:55.3]} 10... Qb6 {[%clk 0:02:43]} 11. Bxc5
{[%clk 0:02:52.1]} 11... Nxc5 {[%clk 0:02:42.5]} 12. Qf2 {[%clk 0:02:52.7]}
12... b4 {[%clk 0:02:34.8]} 13. Ne2 {[%clk 0:02:52.6]} 13... a5 {[%clk
0:02:24.6]} 14. O-O {[%clk 0:02:35.7]} 14... Ba6 {[%clk 0:02:06.4]} 15. Rad1
{[%clk 0:02:35.1]} 15... Bxd3 {[%clk 0:02:00.4]} 16. cxd3 {[%clk 0:02:34.6]}
16... Na4 {[%clk 0:01:56.1]} 17. Qxb6 {[%clk 0:02:02.4]} 17... Nxb6 {[%clk
0:01:55.9]} 18. b3 {[%clk 0:01:59.8]} 18... Kd7 {[%clk 0:01:43.9]} 19. Ned4
{[%clk 0:01:59.6]} 19... Nxd4 {[%clk 0:01:37.3]} 20. Nxd4 {[%clk 0:02:00.1]}
20... a4 {[%clk 0:01:37.6]} 21. f5 {[%clk 0:01:58.7]} 21... axb3 {[%clk
0:01:30.4]} 22. axb3 {[%clk 0:01:59.6]} 22... Ke7 {[%clk 0:01:24.1]} 23. Rc1
{[%clk 0:01:18.9]} 23... Rhc8 {[%clk 0:01:21.5]} 24. fxe6 {[%clk 0:01:11.8]}
24... fxe6 {[%clk 0:01:21]} 25. Nc6+ {[%clk 0:01:10.6]} 25... Ke8 {[%clk
0:01:18.2]} 26. Nxb4 {[%clk 0:01:10.5]} 26... Rxc1 {[%clk 0:01:05.4]} 27. Rxc1
{[%clk 0:01:11.4]} 27... Nd7 {[%clk 0:01:06.1]} 28. Nc6 {[%clk 0:00:45.7]} 28...
Rc8 {[%clk 0:01:04.7]} 29. Rc2 {[%clk 0:00:35.2]} 29... Nxe5 {[%clk 0:01:01.9]}
30. Nd4 {[%clk 0:00:35.7]} 30... Rxc2 {[%clk 0:01:01.7]} 31. Nxc2 {[%clk
0:00:36.6]} 31... Nxd3 {[%clk 0:01:02.3]} 32. b4 {[%clk 0:00:31.7]} 32... Kd7
{[%clk 0:01:01.7]} 33. b5 {[%clk 0:00:31.6]} 33... Kd6 {[%clk 0:00:57.8]} 34.
Nd4 {[%clk 0:00:31.6]} 34... g6 {[%clk 0:00:54.9]} 35. b6 {[%clk 0:00:28.1]}
35... Nc5 {[%clk 0:00:51.3]} 36. Kf2 {[%clk 0:00:16.8]} 36... e5 {[%clk
0:00:48.5]} 37. Nf3 {[%clk 0:00:16.8]} 37... e4 {[%clk 0:00:33.2]} 38. Nd4
{[%clk 0:00:16.6]} 38... Nb7 {[%clk 0:00:31.1]} 39. Ke3 {[%clk 0:00:11.3]} 39...
Kc5 {[%clk 0:00:29.6]} 40. Ne6+ {[%clk 0:00:11.3]} 40... Kxb6 {[%clk 0:00:29.3]}
41. Nf8 {[%clk 0:00:09.7]} 41... Kc5 {[%clk 0:00:27.4]} 42. Nxh7 {[%clk
0:00:09.3]} 42... Nd6 {[%clk 0:00:27.6]} 43. Nf8 {[%clk 0:00:04.9]} 43... d4+
{[%clk 0:00:21.6]} 44. Ke2 {[%clk 0:00:03.4]} 44... d3+ {[%clk 0:00:19.1]} 45.
Kd2 {[%clk 0:00:01.8]} 45... Kd4 {[%clk 0:00:14]} 46. Ne6+ {[%clk 0:00:02]}
46... Ke5 {[%clk 0:00:13.6]} 47. Nf8 {[%clk 0:00:02.9]} 47... g5 {[%clk
0:00:13]} 48. Ng6+ {[%clk 0:00:02.5]} 48... Kd4 {[%clk 0:00:12.3]} 49. Ne7
{[%clk 0:00:01.8]} 49... e3+ {[%clk 0:00:12.3]} 50. Ke1 {[%clk 0:00:02.3]} 50...
d2+ {[%clk 0:00:11]} 51. Ke2 {[%clk 0:00:02]} 51... Ke4 {[%clk 0:00:02]} 52. Nc6
{[%clk 0:00:02]} 1-0

[Event "Early-Titled-Tuesday-Blitz-June-18-2024"]
[Site "Chess.com"]
[Date "2024.06.18"]
[Round "4"]
[White "FerAsensio2024"]
[Black "LoonsDeKoeben"]
[Result "0-1"]
[WhiteElo "2525"]
[BlackElo "2384"]
[TimeControl "180+1"]
[EndTime "8:42:22 PDT"]
[Termination "LoonsDeKoeben won by checkmate"]

1. d4 {[%clk 0:03:00.9]} 1... e6 {[%clk 0:03:00.3]} 2. Nc3 {[%clk 0:03:00.7]}
2... b6 {[%clk 0:03:00.5]} 3. a3 {[%clk 0:02:58.8]} 3... Bb7 {[%clk 0:03:01.1]}
4. e4 {[%clk 0:02:59.3]} 4... Nf6 {[%clk 0:03:01.8]} 5. Bd3 {[%clk 0:02:58.9]}
5... d6 {[%clk 0:03:01.9]} 6. Nf3 {[%clk 0:02:56.9]} 6... Nbd7 {[%clk
0:03:02.4]} 7. Bg5 {[%clk 0:02:50.8]} 7... h6 {[%clk 0:02:47.2]} 8. Bh4 {[%clk
0:02:46.3]} 8... Be7 {[%clk 0:02:40.8]} 9. Qe2 {[%clk 0:02:45]} 9... Nf8 {[%clk
0:02:40.9]} 10. e5 {[%clk 0:02:26.5]} 10... Nd5 {[%clk 0:02:27.9]} 11. Nxd5
{[%clk 0:02:09.5]} 11... Bxd5 {[%clk 0:02:28]} 12. Bxe7 {[%clk 0:02:09.2]} 12...
Qxe7 {[%clk 0:02:18.8]} 13. c4 {[%clk 0:01:49.8]} 13... Bb7 {[%clk 0:02:18.6]}
14. O-O-O {[%clk 0:01:43.5]} 14... d5 {[%clk 0:02:18.2]} 15. Kb1 {[%clk
0:01:38.8]} 15... O-O-O {[%clk 0:02:09.8]} 16. cxd5 {[%clk 0:01:33]} 16... Bxd5
{[%clk 0:02:08.7]} 17. Rc1 {[%clk 0:01:26.4]} 17... Kb8 {[%clk 0:02:07.3]} 18.
Rc3 {[%clk 0:01:16.3]} 18... Ng6 {[%clk 0:01:54.8]} 19. Bxg6 {[%clk 0:00:36.9]}
19... fxg6 {[%clk 0:01:54.5]} 20. Rhc1 {[%clk 0:00:35.3]} 20... g5 {[%clk
0:01:47.6]} 21. Ne1 {[%clk 0:00:27.5]} 21... Rc8 {[%clk 0:01:40]} 22. Nd3 {[%clk
0:00:20.9]} 22... a5 {[%clk 0:01:35.8]} 23. Ka1 {[%clk 0:00:19.1]} 23... Bxg2
{[%clk 0:01:29.2]} 24. f3 {[%clk 0:00:19]} 24... Rhf8 {[%clk 0:01:29.1]} 25.
Qxg2 {[%clk 0:00:18.9]} 25... Qd7 {[%clk 0:01:25.9]} 26. Rc4 {[%clk 0:00:16.3]}
26... Qd5 {[%clk 0:01:25.6]} 27. Ne1 {[%clk 0:00:15.6]} 27... Rf4 {[%clk
0:01:25.1]} 28. Qc2 {[%clk 0:00:11.4]} 28... c6 {[%clk 0:01:16.9]} 29. Qc3
{[%clk 0:00:10.1]} 29... Kb7 {[%clk 0:01:13.9]} 30. a4 {[%clk 0:00:08]} 30...
Rh4 {[%clk 0:01:12.1]} 31. Rc2 {[%clk 0:00:07.7]} 31... Rf4 {[%clk 0:01:12.8]}
32. Ka2 {[%clk 0:00:07.5]} 32... g4 {[%clk 0:01:12.2]} 33. fxg4 {[%clk
0:00:05.8]} 33... Rxg4 {[%clk 0:01:13.1]} 34. b3 {[%clk 0:00:06.1]} 34... Rg1
{[%clk 0:01:12.4]} 35. Nd3 {[%clk 0:00:06]} 35... Rf1 {[%clk 0:01:04.6]} 36. Nc1
{[%clk 0:00:04.5]} 36... Qh1 {[%clk 0:01:03.1]} 37. Qb2 {[%clk 0:00:03.8]} 37...
Rd8 {[%clk 0:01:02.2]} 38. b4 {[%clk 0:00:04.1]} 38... axb4 {[%clk 0:00:58.4]}
39. Rxb4 {[%clk 0:00:05]} 39... Qd5+ {[%clk 0:00:57.7]} 40. Qb3 {[%clk
0:00:03.6]} 40... Qa5 {[%clk 0:00:42.2]} 41. Rb2 {[%clk 0:00:02.7]} 41... b5
{[%clk 0:00:20.3]} 42. Nd3 {[%clk 0:00:02.7]} 42... Kc7 {[%clk 0:00:19.7]} 43.
Nc5 {[%clk 0:00:03.1]} 43... bxa4 {[%clk 0:00:20.2]} 44. Nxe6+ {[%clk
0:00:03.1]} 44... Kd7 {[%clk 0:00:18.6]} 45. Rb7+ {[%clk 0:00:03.7]} 45... Ke8
{[%clk 0:00:18.3]} 46. Qa3 {[%clk 0:00:03.6]} 46... Qd5+ {[%clk 0:00:17.4]} 47.
R7b3 {[%clk 0:00:02]} 47... axb3+ {[%clk 0:00:17.7]} 48. Rxb3 {[%clk 0:00:02.7]}
48... Rf2+ {[%clk 0:00:18.1]} 49. Ka1 {[%clk 0:00:02.7]} 49... Qxe6 {[%clk
0:00:16.2]} 50. Rb7 {[%clk 0:00:03.1]} 50... Rf1+ {[%clk 0:00:13.1]} 51. Kb2
{[%clk 0:00:02.9]} 51... Rf2+ {[%clk 0:00:13.6]} 52. Ka1 {[%clk 0:00:03.3]}
52... Rxd4 {[%clk 0:00:10.7]} 53. Qa8+ {[%clk 0:00:02.9]} 53... Rd8 {[%clk
0:00:10.9]} 54. Qa4 {[%clk 0:00:03]} 54... Rf1+ {[%clk 0:00:09.4]} 55. Kb2
{[%clk 0:00:03.1]} 55... Rd2+ {[%clk 0:00:09.9]} 56. Kc3 {[%clk 0:00:03.7]}
56... Rd8 {[%clk 0:00:08.7]} 57. Qb4 {[%clk 0:00:02.4]} 57... Qxe5+ {[%clk
0:00:08.7]} 58. Kc2 {[%clk 0:00:02.5]} 58... Qe2+ {[%clk 0:00:08.2]} 59. Kc3
{[%clk 0:00:01.7]} 59... Rc1+ {[%clk 0:00:08.4]} 60. Kb3 {[%clk 0:00:01.9]}
60... Rb1+ {[%clk 0:00:08.6]} 61. Kc3 {[%clk 0:00:02.3]} 61... Qd2+ {[%clk
0:00:08.4]} 62. Kc4 {[%clk 0:00:02.6]} 62... Qd4# {[%clk 0:00:09]} 0-1

[Event "Early-Titled-Tuesday-Blitz-June-18-2024"]
[Site "Chess.com"]
[Date "2024.06.18"]
[Round "4"]
[White "tusplingher"]
[Black "NikitaShnadrygin"]
[Result "1-0"]
[WhiteElo "2577"]
[BlackElo "2759"]
[TimeControl "180+1"]
[EndTime "8:42:24 PDT"]
[Termination "tusplingher won by resignation"]

1. e4 {[%clk 0:03:00.9]} 1... c5 {[%clk 0:02:59.4]} 2. Nf3 {[%clk 0:02:59]} 2...
e6 {[%clk 0:02:59.8]} 3. d4 {[%clk 0:02:57.4]} 3... cxd4 {[%clk 0:03:00.7]} 4.
Nxd4 {[%clk 0:02:57.5]} 4... Nf6 {[%clk 0:03:01.4]} 5. Nc3 {[%clk 0:02:57.2]}
5... Nc6 {[%clk 0:03:02.1]} 6. a3 {[%clk 0:02:57.9]} 6... Be7 {[%clk 0:03:02]}
7. Be3 {[%clk 0:02:56.9]} 7... O-O {[%clk 0:03:01.2]} 8. Qe2 {[%clk 0:02:57]}
8... d6 {[%clk 0:02:51.6]} 9. O-O-O {[%clk 0:02:50.8]} 9... Qc7 {[%clk
0:02:51.5]} 10. g4 {[%clk 0:02:47.6]} 10... Nxd4 {[%clk 0:02:41]} 11. Rxd4
{[%clk 0:02:47.1]} 11... e5 {[%clk 0:02:41.4]} 12. Rc4 {[%clk 0:02:47.1]} 12...
Qb8 {[%clk 0:02:32]} 13. g5 {[%clk 0:02:42.5]} 13... Ne8 {[%clk 0:02:23.5]} 14.
Nd5 {[%clk 0:02:39.4]} 14... Bd8 {[%clk 0:02:22.7]} 15. h4 {[%clk 0:02:37.1]}
15... Be6 {[%clk 0:02:22.5]} 16. Bh3 {[%clk 0:02:33.3]} 16... Nc7 {[%clk
0:01:59.8]} 17. Bxe6 {[%clk 0:02:27.1]} 17... fxe6 {[%clk 0:01:57.7]} 18. Nxc7
{[%clk 0:02:25.2]} 18... Bxc7 {[%clk 0:01:58.6]} 19. Qg4 {[%clk 0:02:22.4]}
19... Re8 {[%clk 0:01:56.1]} 20. Rg1 {[%clk 0:01:56.2]} 20... d5 {[%clk
0:01:52]} 21. Rb4 {[%clk 0:01:43.8]} 21... Bd6 {[%clk 0:01:45.3]} 22. Rb3 {[%clk
0:01:42.6]} 22... d4 {[%clk 0:01:39.9]} 23. Bd2 {[%clk 0:01:42.6]} 23... Qc7
{[%clk 0:01:39.5]} 24. Qe2 {[%clk 0:01:36.4]} 24... a6 {[%clk 0:01:37.4]} 25.
Bb4 {[%clk 0:01:26.3]} 25... Bxb4 {[%clk 0:01:33.5]} 26. Rxb4 {[%clk 0:01:26.2]}
26... b5 {[%clk 0:01:33.7]} 27. Rb3 {[%clk 0:01:24.7]} 27... Rac8 {[%clk
0:01:30.7]} 28. g6 {[%clk 0:01:17.3]} 28... h6 {[%clk 0:01:30.2]} 29. Kb1 {[%clk
0:01:09.9]} 29... Rf8 {[%clk 0:01:28]} 30. Rgg3 {[%clk 0:01:01.5]} 30... Rf4
{[%clk 0:01:25.2]} 31. Rbf3 {[%clk 0:00:51.9]} 31... Qc4 {[%clk 0:00:55.2]} 32.
Qxc4 {[%clk 0:00:25.3]} 32... bxc4 {[%clk 0:00:56.1]} 33. Rxf4 {[%clk
0:00:25.6]} 33... exf4 {[%clk 0:00:57]} 34. Rg4 {[%clk 0:00:22.7]} 34... e5
{[%clk 0:00:57.5]} 35. Kc1 {[%clk 0:00:23]} 35... Kf8 {[%clk 0:00:54.1]} 36. f3
{[%clk 0:00:20.4]} 36... Ke7 {[%clk 0:00:53.1]} 37. Kd2 {[%clk 0:00:20.4]} 37...
c3+ {[%clk 0:00:53.1]} 38. bxc3 {[%clk 0:00:17.7]} 38... Rxc3 {[%clk 0:00:53.3]}
39. Rg1 {[%clk 0:00:16.7]} 39... Kf6 {[%clk 0:00:33.9]} 40. h5 {[%clk
0:00:16.5]} 40... Rxf3 {[%clk 0:00:33.2]} 41. Rb1 {[%clk 0:00:16.5]} 41... Rxa3
{[%clk 0:00:26.2]} 42. Rb7 {[%clk 0:00:13.5]} 42... Kg5 {[%clk 0:00:16.9]} 43.
Rxg7 {[%clk 0:00:13.2]} 43... Kxh5 {[%clk 0:00:17.4]} 44. Rg8 {[%clk 0:00:12.4]}
44... Rg3 {[%clk 0:00:16.5]} 45. g7 {[%clk 0:00:12.1]} 45... a5 {[%clk
0:00:16.9]} 46. Re8 {[%clk 0:00:10.2]} 46... Rxg7 {[%clk 0:00:16.8]} 47. Rxe5+
{[%clk 0:00:10.4]} 47... Rg5 {[%clk 0:00:17.7]} 48. Re8 {[%clk 0:00:10.1]} 48...
Kg4 {[%clk 0:00:17.7]} 49. e5 {[%clk 0:00:10.1]} 49... f3 {[%clk 0:00:18.1]} 50.
e6 {[%clk 0:00:10.3]} 50... Re5 {[%clk 0:00:12.2]} 51. e7 {[%clk 0:00:10.4]}
51... Kh5 {[%clk 0:00:12.1]} 52. Kd3 {[%clk 0:00:07.5]} 52... f2 {[%clk
0:00:09.9]} 53. Rf8 {[%clk 0:00:07.8]} 53... Rxe7 {[%clk 0:00:10.2]} 54. Rxf2
{[%clk 0:00:08]} 54... Ra7 {[%clk 0:00:10.2]} 55. Rh2+ {[%clk 0:00:07]} 55...
Kg5 {[%clk 0:00:09.9]} 56. Kxd4 {[%clk 0:00:06.7]} 56... a4 {[%clk 0:00:10.2]}
57. c4 {[%clk 0:00:07.3]} 57... a3 {[%clk 0:00:10.6]} 58. Ra2 {[%clk 0:00:05.8]}
58... Kf6 {[%clk 0:00:10.4]} 59. Kc5 {[%clk 0:00:05.7]} 59... h5 {[%clk
0:00:10.5]} 60. Kb6 {[%clk 0:00:05.9]} 60... Rb7+ {[%clk 0:00:11]} 61. Kxb7
{[%clk 0:00:06]} 1-0

[Event "Early-Titled-Tuesday-Blitz-June-18-2024"]
[Site "Chess.com"]
[Date "2024.06.18"]
[Round "4"]
[White "djano"]
[Black "OparinGrigoriy"]
[Result "1/2-1/2"]
[WhiteElo "2644"]
[BlackElo "3050"]
[TimeControl "180+1"]
[EndTime "8:42:26 PDT"]
[Termination "Game drawn - insufficient material"]

1. e4 {[%clk 0:03:00.9]} 1... c5 {[%clk 0:03:00.4]} 2. Nc3 {[%clk 0:03:00.5]}
2... Nc6 {[%clk 0:03:00.5]} 3. Bb5 {[%clk 0:03:00]} 3... Nd4 {[%clk 0:03:00.8]}
4. Nf3 {[%clk 0:03:00.3]} 4... e6 {[%clk 0:03:00.2]} 5. O-O {[%clk 0:02:59.9]}
5... a6 {[%clk 0:03:00.8]} 6. Bd3 {[%clk 0:02:59.9]} 6... Nc6 {[%clk 0:02:57.9]}
7. a3 {[%clk 0:03:00.2]} 7... g5 {[%clk 0:02:57.6]} 8. b4 {[%clk 0:02:57.8]}
8... g4 {[%clk 0:02:45.8]} 9. Ne1 {[%clk 0:02:57.7]} 9... h5 {[%clk 0:02:46.4]}
10. Bb2 {[%clk 0:02:53.7]} 10... cxb4 {[%clk 0:02:43.6]} 11. axb4 {[%clk
0:02:46.2]} 11... Bg7 {[%clk 0:02:42.7]} 12. b5 {[%clk 0:02:37.4]} 12... Ne5
{[%clk 0:02:42.7]} 13. Be2 {[%clk 0:02:32.2]} 13... Ne7 {[%clk 0:02:42.8]} 14.
d4 {[%clk 0:02:31.7]} 14... N5g6 {[%clk 0:02:42.6]} 15. e5 {[%clk 0:02:27.9]}
15... d6 {[%clk 0:02:32.2]} 16. exd6 {[%clk 0:02:19]} 16... Qxd6 {[%clk
0:02:33.1]} 17. Ne4 {[%clk 0:02:08.3]} 17... Qc7 {[%clk 0:02:04.7]} 18. Nd3
{[%clk 0:01:57.4]} 18... O-O {[%clk 0:01:57.9]} 19. f3 {[%clk 0:01:49.7]} 19...
Nf5 {[%clk 0:01:54.4]} 20. Qd2 {[%clk 0:01:34]} 20... Nxd4 {[%clk 0:01:50.3]}
21. fxg4 {[%clk 0:01:17.9]} 21... hxg4 {[%clk 0:01:49.7]} 22. Bxg4 {[%clk
0:01:11.2]} 22... f5 {[%clk 0:01:48.9]} 23. Bh5 {[%clk 0:01:11.5]} 23... Qxc2
{[%clk 0:01:17.6]} 24. Bxg6 {[%clk 0:01:00.3]} 24... Qxd2 {[%clk 0:00:58.1]} 25.
Nxd2 {[%clk 0:01:01.2]} 25... Nxb5 {[%clk 0:00:41.6]} 26. Bxg7 {[%clk
0:00:51.1]} 26... Kxg7 {[%clk 0:00:42.5]} 27. Bh5 {[%clk 0:00:51.7]} 27... Bd7
{[%clk 0:00:32.8]} 28. Ne5 {[%clk 0:00:52]} 28... Rad8 {[%clk 0:00:33.3]} 29.
Ndc4 {[%clk 0:00:49.9]} 29... Nd4 {[%clk 0:00:27.3]} 30. Rfd1 {[%clk 0:00:46.4]}
30... Bb5 {[%clk 0:00:27.5]} 31. Kf2 {[%clk 0:00:41.2]} 31... Kf6 {[%clk
0:00:28]} 32. Bf3 {[%clk 0:00:36.9]} 32... Bxc4 {[%clk 0:00:22.8]} 33. Nxc4
{[%clk 0:00:36.3]} 33... b5 {[%clk 0:00:23.5]} 34. Ne3 {[%clk 0:00:33.2]} 34...
Rd6 {[%clk 0:00:16.7]} 35. Rd2 {[%clk 0:00:26]} 35... Rfd8 {[%clk 0:00:14.9]}
36. Rad1 {[%clk 0:00:24.7]} 36... e5 {[%clk 0:00:15.5]} 37. Nc2 {[%clk
0:00:16.3]} 37... a5 {[%clk 0:00:15.5]} 38. Nxd4 {[%clk 0:00:15.1]} 38... Rxd4
{[%clk 0:00:16.4]} 39. Rxd4 {[%clk 0:00:15.1]} 39... exd4 {[%clk 0:00:17.1]} 40.
Ke2 {[%clk 0:00:14.9]} 40... a4 {[%clk 0:00:13.7]} 41. Rb1 {[%clk 0:00:14.3]}
41... Rb8 {[%clk 0:00:11.9]} 42. Bc6 {[%clk 0:00:14.2]} 42... a3 {[%clk
0:00:12]} 43. Bd5 {[%clk 0:00:11.8]} 43... b4 {[%clk 0:00:09.7]} 44. Kd3 {[%clk
0:00:11.5]} 44... Ke5 {[%clk 0:00:10.1]} 45. Ba2 {[%clk 0:00:10.9]} 45... Rb7
{[%clk 0:00:08.1]} 46. g3 {[%clk 0:00:11.3]} 46... Rb8 {[%clk 0:00:08.3]} 47.
Bb3 {[%clk 0:00:06.5]} 47... Rc8 {[%clk 0:00:08.1]} 48. Bc4 {[%clk 0:00:06.8]}
48... Rb8 {[%clk 0:00:06.2]} 49. Bb3 {[%clk 0:00:06.9]} 49... Rc8 {[%clk
0:00:06.5]} 50. Bc4 {[%clk 0:00:07.4]} 50... Ra8 {[%clk 0:00:05.1]} 51. Ba2
{[%clk 0:00:07.4]} 51... Rb8 {[%clk 0:00:04.7]} 52. Bc4 {[%clk 0:00:06.9]} 52...
Rb6 {[%clk 0:00:03.6]} 53. Ba2 {[%clk 0:00:07]} 53... Rb7 {[%clk 0:00:03.9]} 54.
h4 {[%clk 0:00:07.1]} 54... Rg7 {[%clk 0:00:03.5]} 55. Rxb4 {[%clk 0:00:06.7]}
55... Rxg3+ {[%clk 0:00:03.8]} 56. Kc4 {[%clk 0:00:06.2]} 56... Rc3+ {[%clk
0:00:04.4]} 57. Kb5 {[%clk 0:00:06.2]} 57... Rc2 {[%clk 0:00:04.9]} 58. Bb3
{[%clk 0:00:06.4]} 58... Rb2 {[%clk 0:00:04.2]} 59. Kc4 {[%clk 0:00:06.7]} 59...
a2 {[%clk 0:00:03.4]} 60. Ra4 {[%clk 0:00:07]} 60... d3 {[%clk 0:00:03.2]} 61.
Rxa2 {[%clk 0:00:05.9]} 61... Rxa2 {[%clk 0:00:01.9]} 62. Bxa2 {[%clk
0:00:06.8]} 62... d2 {[%clk 0:00:02.7]} 63. Bb3 {[%clk 0:00:07.3]} 63... Kf4
{[%clk 0:00:03.4]} 64. Kd3 {[%clk 0:00:07.5]} 64... Kg4 {[%clk 0:00:03.7]} 65.
Bd1+ {[%clk 0:00:07.3]} 65... Kxh4 {[%clk 0:00:04.1]} 66. Kxd2 {[%clk 0:00:08]}
66... Kg3 {[%clk 0:00:04.9]} 67. Ke3 {[%clk 0:00:08.4]} 67... f4+ {[%clk
0:00:05.8]} 68. Kd2 {[%clk 0:00:08.8]} 68... Kg2 {[%clk 0:00:05.8]} 69. Be2
{[%clk 0:00:09.1]} 69... Kf2 {[%clk 0:00:06.4]} 70. Bd1 {[%clk 0:00:09.3]} 70...
Kf1 {[%clk 0:00:06.6]} 71. Be2+ {[%clk 0:00:09.7]} 71... Kg1 {[%clk 0:00:07.5]}
72. Bd1 {[%clk 0:00:10.3]} 72... Kf2 {[%clk 0:00:08.2]} 73. Be2 {[%clk
0:00:10.8]} 73... Kg3 {[%clk 0:00:09.1]} 74. Bd1 {[%clk 0:00:11.2]} 74... f3
{[%clk 0:00:09.6]} 75. Bxf3 {[%clk 0:00:10.9]} 1/2-1/2

[Event "Early-Titled-Tuesday-Blitz-June-18-2024"]
[Site "Chess.com"]
[Date "2024.06.18"]
[Round "4"]
[White "Feegus"]
[Black "JoliyRoger"]
[Result "1-0"]
[WhiteElo "2684"]
[BlackElo "2454"]
[TimeControl "180+1"]
[EndTime "8:42:26 PDT"]
[Termination "Feegus won on time"]

1. e4 {[%clk 0:03:00.9]} 1... c6 {[%clk 0:02:58.3]} 2. d4 {[%clk 0:03:00.9]}
2... d5 {[%clk 0:02:58.1]} 3. exd5 {[%clk 0:03:01.7]} 3... cxd5 {[%clk
0:02:57.9]} 4. Bd3 {[%clk 0:03:02.2]} 4... Nc6 {[%clk 0:02:58.4]} 5. c3 {[%clk
0:03:02.6]} 5... Qc7 {[%clk 0:02:57.2]} 6. h3 {[%clk 0:03:02.1]} 6... Nf6 {[%clk
0:02:56]} 7. Nf3 {[%clk 0:03:02.6]} 7... g6 {[%clk 0:02:55.5]} 8. O-O {[%clk
0:03:03.3]} 8... Bf5 {[%clk 0:02:55.9]} 9. Re1 {[%clk 0:03:02.5]} 9... e6 {[%clk
0:02:54]} 10. Na3 {[%clk 0:03:00.2]} 10... a6 {[%clk 0:02:50.7]} 11. Bf1 {[%clk
0:03:00.1]} 11... h5 {[%clk 0:02:47.2]} 12. Nc2 {[%clk 0:02:52.9]} 12... Bd6
{[%clk 0:02:31.2]} 13. Ne3 {[%clk 0:02:52.9]} 13... Be4 {[%clk 0:02:30]} 14. Nd2
{[%clk 0:02:35.6]} 14... O-O-O {[%clk 0:02:24.9]} 15. b4 {[%clk 0:02:32.1]}
15... g5 {[%clk 0:02:22.9]} 16. a4 {[%clk 0:02:18.4]} 16... g4 {[%clk
0:02:04.9]} 17. b5 {[%clk 0:02:13.4]} 17... Nb8 {[%clk 0:02:04.3]} 18. bxa6
{[%clk 0:01:47.2]} 18... Nxa6 {[%clk 0:02:01.8]} 19. h4 {[%clk 0:01:08.7]} 19...
Bg6 {[%clk 0:02:01.1]} 20. c4 {[%clk 0:01:04.4]} 20... Nb4 {[%clk 0:01:40.6]}
21. Ba3 {[%clk 0:00:55.5]} 21... g3 {[%clk 0:01:24.5]} 22. f3 {[%clk 0:00:54.4]}
22... Nd3 {[%clk 0:01:16]} 23. Bxd6 {[%clk 0:00:49.8]} 23... Qxd6 {[%clk
0:01:14.9]} 24. Bxd3 {[%clk 0:00:48]} 24... Bxd3 {[%clk 0:01:14.4]} 25. Qb3
{[%clk 0:00:46.4]} 25... dxc4 {[%clk 0:01:11.3]} 26. Ndxc4 {[%clk 0:00:46.7]}
26... Qxd4 {[%clk 0:01:09.4]} 27. Na5 {[%clk 0:00:23.6]} 27... Rd7 {[%clk
0:00:58.7]} 28. Rac1+ {[%clk 0:00:22.9]} 28... Kd8 {[%clk 0:00:59.1]} 29. Qxb7
{[%clk 0:00:14.6]} 29... Rxb7 {[%clk 0:00:48.4]} 30. Nc6+ {[%clk 0:00:14.8]}
30... Kd7 {[%clk 0:00:29.1]} 31. Nxd4 {[%clk 0:00:15.7]} 31... Ke7 {[%clk
0:00:23.3]} 32. Nef5+ {[%clk 0:00:15.1]} 32... Bxf5 {[%clk 0:00:22.7]} 33. Nxf5+
{[%clk 0:00:15.2]} 33... Kd7 {[%clk 0:00:19.7]} 34. Nxg3 {[%clk 0:00:08.6]}
34... Ra8 {[%clk 0:00:15.5]} 35. Ne4 {[%clk 0:00:07.2]} 35... Nxe4 {[%clk
0:00:13.7]} 36. Rxe4 {[%clk 0:00:08.1]} 36... Rba7 {[%clk 0:00:10.5]} 37. Rcc4
{[%clk 0:00:07.7]} 37... Ra5 {[%clk 0:00:10.3]} 38. Rb4 {[%clk 0:00:07.7]} 38...
Ke7 {[%clk 0:00:10.4]} 39. Kh2 {[%clk 0:00:07.9]} 39... f5 {[%clk 0:00:10.5]}
40. Rec4 {[%clk 0:00:07.9]} 40... Kf6 {[%clk 0:00:11.1]} 41. Rc6 {[%clk
0:00:05.4]} 41... Rxa4 {[%clk 0:00:10.1]} 42. Rbb6 {[%clk 0:00:05.5]} 42... Re8
{[%clk 0:00:10.6]} 43. Rd6 {[%clk 0:00:05.6]} 43... Rc4 {[%clk 0:00:10]} 44. Rb7
{[%clk 0:00:05.9]} 44... Ke5 {[%clk 0:00:07.8]} 45. Rdd7 {[%clk 0:00:03.7]}
45... Rc2 {[%clk 0:00:08.2]} 46. Rg7 {[%clk 0:00:02.9]} 46... Rd8 {[%clk
0:00:07]} 47. Rg5 {[%clk 0:00:03.1]} 47... Rdd2 {[%clk 0:00:06.9]} 48. Rh7
{[%clk 0:00:03.5]} 48... Kf4 {[%clk 0:00:06.2]} 49. Rhxh5 {[%clk 0:00:03.8]}
49... Rf2 {[%clk 0:00:04.8]} 50. Kh3 {[%clk 0:00:03.8]} 50... Rf1 {[%clk
0:00:04.6]} 51. Kh2 {[%clk 0:00:04.2]} 51... Rff2 {[%clk 0:00:04.9]} 52. Rh6
{[%clk 0:00:04.1]} 52... Rxf3 {[%clk 0:00:03.3]} 53. Rxe6 {[%clk 0:00:02.5]}
53... Rff2 {[%clk 0:00:01.5]} 54. Rf6 {[%clk 0:00:02.7]} 54... Ke4 {[%clk
0:00:02]} 55. Re6+ {[%clk 0:00:02.9]} 55... Kf4 {[%clk 0:00:02.5]} 56. Rf6
{[%clk 0:00:03.4]} 56... Ke5 {[%clk 0:00:03.1]} 57. Rf8 {[%clk 0:00:03]} 57...
Rcd2 {[%clk 0:00:02.6]} 58. h5 {[%clk 0:00:03.4]} 58... Kf4 {[%clk 0:00:03.1]}
59. Rg6 {[%clk 0:00:03.2]} 59... Ke3 {[%clk 0:00:02.9]} 60. h6 {[%clk
0:00:03.3]} 60... Ke2 {[%clk 0:00:03.3]} 61. h7 {[%clk 0:00:03.7]} 1-0